Cogmind - Beta 13 @@@ ROGUE MODE // 2024.07.22 @ 15:14:26 Player: Johge Result: Destroyed by D-53 Grenadier with Mini Grenade Launcher Performance ------------- Evolutions (1) 500 Regions Visited (3) 600 Robots Destroyed (51) 255 Value Destroyed (960) 960 Prototype IDs (5) 100 Alien Tech Used (0) 0 Bonus (0) 0 TOTAL SCORE: 2415 Bonus ------- None Cogmind --------- Core Integrity 0/400 Matter 300/300 Energy 268/280 System Corruption 0% Temperature Warm (159) Movement Rolling (155) Ox5 Location -9/Mines Parts ------- > --- POWER (1) -------- Heavy Ion Engine > --- PROPULSION (3) --- Light Treads Wheel > --- UTILITY (3) ------ High-capacity Storage Unit Signal Interpreter > --- WEAPON (2) ------- Advanced Beam Cannon Advanced Beam Cannon > --- INVENTORY (20) --- Improved Ion Engine Improved Ion Engine Improved Targeting Computer Hardened Light Armor Plating Beam Cannon Grenade Launcher Datajack Mining Laser Peak State ------------ > --- POWER ------------ Heavy Ion Engine > --- PROPULSION ------- Light Treads Wheel Wheel > --- UTILITY ---------- Heat Sink High-capacity Storage Unit Signal Interpreter > --- WEAPON ----------- Advanced Beam Cannon Advanced Beam Cannon > --- INVENTORY -------- Improved Ion Engine Improved Ion Engine Improved Targeting Computer Hardened Light Armor Plating Beam Cannon Advanced Beam Cannon Grenade Launcher Datajack Mining Laser [Rating: 16] Favorites ----------- Power Ion Engine Engine Ion Engine Propulsion Light Treads Treads Light Treads Wheel Wheel Utility High-capacity Storage Unit Device Heat Sink Storage High-capacity Storage Unit Processor Signal Interpreter Weapon Medium Laser Energy Gun Medium Laser Energy Cannon Advanced Beam Cannon Ballistic Gun Light Assault Rifle Build | -11 -10 -9 -9 ------- Run | Yrd Mat Mat Min Slots Evolved 2 | . . 2 . Power . | . . . . Propulsion 1 | . . 1 . Utility 1 | . . 1 . Weapon . | . . . . Parts Attached 24 | 6 4 13 1 Power 6 | 1 2 3 . Engine 6 | 1 2 3 . Core . | . . . . Reactor . | . . . . Propulsion 7 | 2 . 5 . Treads 5 | 2 . 3 . Leg . | . . . . Wheel 2 | . . 2 . Hover . | . . . . Flight . | . . . . Utility 4 | 1 2 1 . Device 1 | . 1 . . Storage 2 | 1 1 . . Processor 1 | . . 1 . Hackware . | . . . . Protection . | . . . . Artifact . | . . . . Weapon 7 | 2 . 4 1 Energy Gun 2 | 1 . 1 . Energy Cannon 3 | . . 2 1 Ballistic Gun 2 | 1 . 1 . Ballistic Cannon . | . . . . Launcher . | . . . . Special Weapon . | . . . . Impact Weapon . | . . . . Slashing Weapon . | . . . . Piercing Weapon . | . . . . Special Melee Weapon . | . . . . Unidentified Prototypes 2 | . . 2 . Parts Lost 10 | . 1 6 3 Power 2 | . 1 1 . Propulsion 4 | . . 3 1 Utility 1 | . . . 1 Weapon 3 | . . 2 1 Highest Loss Streak 2 | . 1 2 2 To Critical Strikes . | . . . . Average Slot Usage (%) 86 | . 89 83 95 Engine 11 | . 13 10 11 Treads 20 | . 28 17 11 Wheel 1 | . . . 21 Device 8 | . 4 11 10 Storage 12 | . 14 11 11 Processor 7 | . . 11 11 Energy Gun 11 | . 14 11 . Energy Cannon 3 | . . 4 20 Ballistic Gun 8 | . 14 6 . Naked Turns . | . . . . Heaviest Build 57 | 11 49 57 57 Greatest Support 60 | 40 40 60 20 Greatest Overweight (x) 18 | . 1 18 5 Average Overweight (x) 1 | . . 1 2 Largest Inventory Capacity 20 | 8 20 20 20 Average Capacity 19 | 7 19 20 20 Most Carried 12 | 4 6 12 9 Average Carried 6 | 1 3 7 8 Final Capacity 20 | 8 20 20 20 Final Carried 9 | 1 6 9 8 Class Distribution -------------------- 71% | Mutant 28% | Scavenger-Mutant Dominant Class ---------------- Mutant | -10/Materials Mutant | -9/Materials Scavenger-Mutant | -9/Mines Resources | -11 -10 -9 -9 ----------- Run | Yrd Mat Mat Min Matter Collected 522 | 233 93 186 10 Remotely . | . . . . Salvage Created 1481 | . 404 945 132 Parts 97 | . 34 49 14 Haulers Intercepted 3 | . . 3 . Recyclers Shooed . | . . . . Parts Field Recycled . | . . . . Retrieved Matter . | . . . . Parts Self-Destructed . | . . . . Prevented . | . . . . Kills | -11 -10 -9 -9 ------- Run | Yrd Mat Mat Min Combat Hostiles Destroyed 36 | . 13 16 7 Guns 25 | . 13 12 . Cannons 7 | . . 2 5 AOE 2 | . . . 2 Classes Destroyed 9 | . 3 6 . Worker 2 | . . 2 . Tunneler 2 | . . 1 1 Hauler 3 | . . 3 . Recycler 3 | . . 2 1 Mechanic 1 | . . 1 . Watcher 4 | . 1 3 . Swarmer 20 | . 6 7 7 Grunt 13 | . 7 6 . Sentry 3 | . . 3 . Best Kill Streak 8 | . 8 7 7 Combat Bots Only 8 | . 8 4 5 Max Kills in Single Turn 2 | . 2 2 2 Gunslinging 1 | . 1 1 . Exploded 2 | . . . 2 Melee . | . . . . Uniques/NPCs Destroyed . | . . . . Combat | -11 -10 -9 -9 -------- Run | Yrd Mat Mat Min Hostile Shots Fired 236 | . 54 141 41 Missed 63 | . 16 38 9 Damage Taken 2068 | . 384 1194 490 Core 431 | . 26 309 96 Absorbed by Shields . | . . . . Regen/Repaired (Parts) 95 | . . 95 . Core Remaining (%) 94 | 100 89 . . Volleys Fired 126 | . 33 71 22 Largest 2 | . 2 2 2 Hottest 136 | . 70 136 136 Shots Fired 240 | . 66 141 33 Gun 170 | . 66 104 . Cannon 70 | . . 37 33 Launcher . | . . . . Special . | . . . . Kinetic 65 | . 33 32 . Thermal 175 | . 33 109 33 Explosive . | . . . . Electromagnetic . | . . . . Robot Hit Streak 14 | . 7 14 3 Robot Miss Streak 4 | . 3 4 4 Penetration Max . | . . . . Secondary Targets 4 | . 2 2 . Max Gunslinging Chain 1 | . 1 1 . Shots Hit Robots 156 | . 45 97 14 Core Hits 70 | . 23 38 9 Critical Kills 2 | . 1 1 . Critical Parts Destroyed . | . . . . Critical Strikes 8 | . 4 4 . Burn 6 | . 3 3 . Meltdown 1 | . . 1 . Destroy 1 | . 1 . . Melee Attacks . | . . . . Impact . | . . . . Slashing . | . . . . Piercing . | . . . . Sneak Attacks . | . . . . Combat Hostiles . | . . . . Follow-up Attacks . | . . . . Damage Inflicted 2491 | . 511 1487 493 Guns 1468 | . 497 971 . Cannons 819 | . . 513 306 Explosions 187 | . . . 187 Melee . | . . . . Ramming 17 | . 14 3 . Kinetic 421 | . 165 256 . Thermal 2053 | . 332 1228 493 Explosive . | . . . . Electromagnetic . | . . . . Impact . | . . . . Slashing . | . . . . Piercing . | . . . . Highest Corruption . | . . . . Average Corruption . | . . . . Corruption Purged . | . . . . Corruption Blocked . | . . . . Overload Shots . | . . . . Overflow Damage 46 | . . 1 45 Projectiles 21 | . . 1 20 Explosions 25 | . . . 25 Melee . | . . . . Knockbacks . | . . . . Impact . | . . . . Kinetic . | . . . . Secondary . | . . . . Self-Inflicted Damage . | . . . . Shots . | . . . . Rammed 3 | . 2 1 . Targets Rammed 3 | . 2 1 . Kicked . | . . . . Crushed . | . . . . Highest Temperature 234 | . 218 234 163 Average Temperature 57 | . 74 46 58 Received Heat Transfer 520 | . 162 318 40 Siege Activations . | . . . . Robots Corrupted . | . . . . Combat Hostiles . | . . . . Parts Fried . | . . . . Impact Corruptions . | . . . . Robots Melted 3 | . . 3 . Combat Hostiles 2 | . . 2 . Parts Melted 13 | . 1 11 1 Heat Transferred 5158 | . 1221 3182 755 Parts Sabotaged . | . . . . Parts Stolen . | . . . . Parts Stripped . | . . . . Power Chain Reactions . | . . . . Alert | -11 -10 -9 -9 ------- Run | Yrd Mat Mat Min Peak Influence 280 | . 280 215 258 Initial 64 | . . . 64 Average 104 | . 149 79 153 Maximum Alert Level 1 | . 1 1 1 Low Security (%) 87 | 100 69 99 60 Level 1 12 | . 30 . 40 Level 2 . | . . . . Level 3 . | . . . . Level 4 . | . . . . Level 5 . | . . . . High Security . | . . . . Max Security . | . . . . Squads Dispatched 3 | . 2 1 . Investigation 2 | . 1 1 . Extermination . | . . . . Reinforcement 1 | . 1 . . Assault . | . . . . Garrison . | . . . . Intercept . | . . . . Searches Triggered . | . . . . Construction Impeded . | . . . . Haulers Reinforced . | . . . . Active Scanning Responses . | . . . . Cargo Convoy Interrupts . | . . . . Stealth | -11 -10 -9 -9 --------- Run | Yrd Mat Mat Min Distress Signals 3 | . 1 2 . Communications Jammed . | . . . . Distress Signals . | . . . . Times Spotted 77 | . 24 27 26 Peak Tracking Total 18 | . 8 5 18 Tactical Retreats 3 | . 2 1 . Traps | -11 -10 -9 -9 ------- Run | Yrd Mat Mat Min Traps Triggered 1 | . . 1 . Indirectly . | . . . . Trap Hack Attempts . | . . . . Triggered . | . . . . Disarmed . | . . . . Reprogrammed . | . . . . Reused . | . . . . Traps Extracted . | . . . . Installed . | . . . . Triggered . | . . . . Machines | -11 -10 -9 -9 ---------- Run | Yrd Mat Mat Min Machines Disabled 4 | . . 3 1 Max in Single Turn 1 | . . 1 1 Machines Repaired . | . . . . Machines Dismantled . | . . . . Machines Sabotaged . | . . . . Overloaded Fab Kills . | . . . . Hacking | -11 -10 -9 -9 --------- Run | Yrd Mat Mat Min Machines Accessed 10 | . 3 7 . Terminals 9 | . 3 6 . Fabricators . | . . . . Repair Stations 1 | . . 1 . Recycling Units . | . . . . Scanalyzers . | . . . . Garrison Access . | . . . . Total Hacks 23 | . 6 17 . Successful 16 | . 3 13 . Failed 7 | . 3 4 . Catastrophic 3 | . 2 1 . Database Lockouts . | . . . . Manual . | . . . . Terminals 19 | . 6 13 . Fabricators . | . . . . Repair Stations 4 | . . 4 . Recycling Units . | . . . . Scanalyzers . | . . . . Garrison Access . | . . . . Terminal Hacks 13 | . 3 10 . Prototype ID Bank 2 | . . 2 . Branch Access Points 2 | . 1 1 . Emergency Access Points 3 | . 1 2 . Scanalyzer Index 1 | . . 1 . Alert Level 1 | . . 1 . Locate Traps 1 | . 1 . . Maintenance Status 1 | . . 1 . Hauler Manifests 1 | . . 1 . Zone Layout 1 | . . 1 . Fabricator Hacks . | . . . . Repair Station Hacks 3 | . . 3 . Scan Component 2 | . . 2 . Repair 1 | . . 1 . Recycling Unit Hacks . | . . . . Scanalyzer . | . . . . Garrison Access Hacks . | . . . . Unauthorized Hacks . | . . . . Terminals . | . . . . Fabricators . | . . . . Repair Stations . | . . . . Recycling Units . | . . . . Scanalyzers . | . . . . Garrison Access . | . . . . Data Cores Recovered . | . . . . Used . | . . . . Hacking Detections 8 | . 3 5 . Full Trace Events 2 | . 1 1 . Feedback Events . | . . . . Feedback Blocked . | . . . . Robot Schematics Acquired . | . . . . Robots Built . | . . . . Authchips . | . . . . Time . | . . . . Total Robot Build Rating . | . . . . Part Schematics Acquired . | . . . . Parts Built . | . . . . Authchips . | . . . . Time . | . . . . Total Part Build Rating . | . . . . Parts Repaired 1 | . . 1 . Time 26 | . . 26 . Parts Recycled . | . . . . Recycled Matter . | . . . . Retrieved Matter . | . . . . Retrieved Components . | . . . . Parts Scanalyzed . | . . . . Part Schematics Acquired . | . . . . Parts Damaged . | . . . . Bothacking | -11 -10 -9 -9 ------------ Run | Yrd Mat Mat Min Used RIF Installer . | . . . . Robots Hacked . | . . . . Non-combat . | . . . . Combat . | . . . . Robot Hacks Applied . | . . . . Relay Couplers Released . | . . . . Fabnet Peak Effective % . | . . . . Robots Rewired . | . . . . Allies Hacked . | . . . . Hacks Repelled . | . . . . Allies | -11 -10 -9 -9 -------- Run | Yrd Mat Mat Min Total Allies . | . . . . Largest Group . | . . . . Highest-Rated Group . | . . . . Highest-Rated Ally . | . . . . Total Orders . | . . . . Ally Attacks . | . . . . Total Damage . | . . . . Kills . | . . . . Allies Corrupted . | . . . . Allies Melted . | . . . . Intel | -11 -10 -9 -9 ------- Run | Yrd Mat Mat Min Robot Analysis Total . | . . . . Derelict Logs Recovered . | . . . . Drone Launches . | . . . . Drone Recoveries . | . . . . Exploration | -11 -10 -9 -9 ------------- Run | Yrd Mat Mat Min Turns Passed 2419 | 67 849 1398 105 Spaces Moved 820 | 40 306 432 42 Core 19 | 8 . 11 . Treads 743 | 32 306 405 . Legs . | . . . . Wheels 58 | . . 16 42 Hover . | . . . . Flight . | . . . . Fastest Speed 50 | 50 160 110 110 Average Speed 233 | 138 234 252 111 Slowest Speed 950 | 160 240 950 155 Overloaded Moves . | . . . . Propulsion Burnouts . | . . . . Robots Hopped . | . . . . Cave-ins Triggered . | . . . . Exploration Rate (%) 29 | 3 52 44 17 Regions Visited 3 Branch Regions 1 Pre-discovered Areas . | . . . . Known Exits Taken 1 | . . 1 . Unknown Exits Taken 2 | 1 1 . . Scrap Searched . | . . . . Spaces Dug . | . . . . Terrain Destroyed 19 | . . . 19 Melee . | . . . . Projectile . | . . . . AOE 19 | . . . 19 Terrain Rammed . | . . . . Walls Destroyed . | . . . . Machines Disabled . | . . . . Actions | -11 -10 -9 -9 --------- Run | Yrd Mat Mat Min Total 1097 | 52 377 599 69 Wait 83 | . 20 59 4 Move 817 | 39 305 431 42 Hop . | . . . . Pick Up 35 | 7 10 18 . Fast Attach . | . . . . Attach 19 | 6 3 9 1 Detach . | . . . . Swap 5 | . 1 4 . Drop 9 | . 3 6 . Fire 126 | . 33 71 22 Melee . | . . . . Ram . | . . . . Kick . | . . . . Crush 3 | . 2 1 . Escape Stasis . | . . . . Rewire . | . . . . Trap . | . . . . Miscellaneous . | . . . . Route ------- -11/Scrapyard -10/Materials (discovered 3 exits: *Mat / *Min x2) -9/Materials (discovered 2 exits: *Min x2) -9/Mines History --------- Turn | Location | Event 6 | -11/Scrapyard | Discovered new exit (range 16) 68 | -11/Scrapyard | Entered Materials 233 | -10/Materials | Destroyed 8 combat bots 310 | -10/Materials | Build established: Mutant 428 | -10/Materials | Discovered new exit (range 7) 513 | -10/Materials | Identified exit to Mines 787 | -10/Materials | Discovered new exit (range 10) 917 | -10/Materials | Entered another Materials area 917 | -9/Materials | Evolved 2 slots: Propulsion x1, Utility x1 1007 | -9/Materials | Repaired Lgt. Treads 1443 | -9/Materials | Discovered new exit (range 10) 1456 | -9/Materials | Build established: Scavenger-Mutant 1503 | -9/Materials | Identified exit to Mines 2019 | -9/Materials | Build established: Mutant 2102 | -9/Materials | Core integrity fell below 50% 2315 | -9/Materials | Entered Mines 2351 | -9/Mines | Core integrity fell below 20% 2361 | -9/Mines | Met a Derelict bent on vengeance 2391 | -9/Mines | Assembled infested the area 2420 | -9/Mines | Destroyed by D-53 Grenadier with Mini Grenade Launcher Last Messages --------------- U-05 Engineer lays Concrete. as-27579 sneak attacks. U-05 Engineer destroyed. C-30 ARC bursts open, deploying its payload. D-53 Grenadier unfolds itself. U-05 Engineer lays Concrete. U-05 Engineer builds a Wall. as-89357 destroyed. Wheel destroyed. as-21423 destroyed. as-98257 destroyed. as-72547 destroyed. Heat Sink destroyed. D-53 Grenadier suffers critical hit (Destroy). as-38768 destroyed. as-72412 destroyed. U-05 Engineer builds a Wall. as-66468 destroyed. as-62010 destroyed. The unstable cave ceiling collapses. Map ----- +----------------------------------------------------+ | ?????????????????????????# ? | | ?????????????????????????# ###### ? | | ?????????????????????????# #??########## ?? | | ?????????????????????????# #? ##????????? ?? | | ????????????????????????## # ##??????????? ??? | | ????????????????????????# #???????????????? | | ????????????????????????# ### #??????????????? | | ????????????????????????# ###? #?????????????? | | ????????????????????????# #?? ??????????????? | | ????????????????????????###%#???? #?????????????? | | ?????????????????????##???#t#????? #????????????? | | ????????????????????## ### #?????? ???????????? | | ????????????????????# #???????? ??????????? | | ???????????????# ## #????????? ??????????? | | ???????????????# ???????# #????????????????????? | | ?????????????????????????#*=####?????????????????? | | ?????????????????????????#%%= ##????????????????? | | ?????????????????????????#[= ##???????????????? | | ?????????????????????????#|%! #???????????????? | | ?????????????????????????# = #???????????????? | | ????????????????????????## ##??????????????? | | ????????????????????##### t ##?????????????? | | ???????????????????## # #?????????????? | | ??????????????????## ## #?????????????? | | ?????????????????## #?# ##?????????????? | | ?????????????????# @ #??##??????????????? | | ?????????????????# dd #??????????????????? | | ????????????????# a % #??????????????????? | | ????????????? =r ????????????????? | | ??????????? % % ;*%####???????????????? | | ???????????? # ; %*[%?????????????????? | | ????????????